Workbook

Sheet المعطيات
C3: =IF(H10="","",H10) -> 1991 | D3: =IFERROR(IF(D4="","",$C$3+D4-1),"") -> 1992 | E3: =IFERROR(IF(E4="","",$C$3+E4-1),"") -> 1993 | F3: 1994 | G3: 1995 | H3: 1996 | I3: 1997 | J3: 1998 | K3: 1999 | L3: 2000 | M3: 2001 | AB3: =IF(H13="","",H13) -> 2032
B4: xi | C4: =IF(C3="","",C3-$C$3+1) -> 1 | D4: =IF(C4>=$H$16,"",COLUMN(D4)-COLUMN($B$4)) -> 2 | E4: =IF(D4>=$H$16,"",COLUMN(E4)-COLUMN($B$4)) -> 3 | F4: 4 | G4: 5 | H4: 6 | I4: 7 | J4: 8 | K4: 9 | L4: 10 | M4: 11 | AB4: =IFERROR(IF(AB3="","",AB3-$C$3+1),"") -> 42
A5: إدخال قيم | B5: yi | C5: 10.3 | D5: 40.5 | E5: 51.7 | F5: 63.9 | G5: 100.8 | H5: 107.6 | I5: 90.3 | J5: 87.1 | K5: 68.7 | L5: 177 | M5: 172 | AB5: =الحل!J67 -> 540.8018182
M9: =M12 -> 540.8018182
E10: إبتداءا من سنة | H10: 1991
M12: =AB5 -> 540.8018182 | P12: الـــ yi المطلوبة بالتقريب
E13: إلى غاية سنة | H13: 2032
E16: عدد الخانات | H16: 11

Sheet الحل
B2: حساب x̅ و y̅:
J3: =IFERROR(L3/L4,"") -> 6 | K3: = | L3: =IF(SUM(المعطيات!C4:AA4)=0,"",SUM(المعطيات!C4:AA4)) -> 66 | M3: = | N3: ∑(xi) | O3: x̅ =
L4: =IF(COUNTA(المعطيات!C4:AA4)-COUNTBLANK(المعطيات!C4:AA4)=0,"",COUNTA(المعطيات!C4:AA4)-COUNTBLANK(المعطيات!C4:AA4)) -> 11 | N4: n
J6: =IFERROR(L6/L7,"") -> 88.17272727 | K6: = | L6: =IF(SUM(المعطيات!C5:AA5)=0,"",SUM(المعطيات!C5:AA5)) -> 969.9 | M6: = | N6: ∑(yi) | O6: y̅ =
L7: =IF(COUNTA(المعطيات!C5:AA5)=0,"",COUNTA(المعطيات!C5:AA5)) -> 11 | N7: n
B9: =IF(TRANSPOSE(xi)=0,"",TRANSPOSE(xi)) -> xi | C9: yi | D9: x = xi - x̅ | J9: y = yi - y̅ | P9: ∑(x.y) | Q9: ∑(x)² | R9: empty/no
B10: 1 | C10: 10.3 | D10: =IFERROR(H10-F10,"") -> -5 | E10: =IF(B10="","","=") -> = | F10: =IF(B10="","",$J$3) -> 6 | G10: =IF(B10="","","-") -> - | H10: =B10 -> 1 | I10: =IF(B10="","","x =") -> x = | J10: =IFERROR(N10-L10,"") -> -77.87272727 | K10: =IF(C10="","","=") -> = | L10: =IF(C10="","",$J$6) -> 88.17272727 | M10: =IF(C10="","","-") -> - | N10: =C10 -> 10.3 | O10: =IF(C10="","","y =") -> y = | P10: =IFERROR(D10*J10,"") -> 389.3636364 | Q10: =IFERROR(D10*D10,"") -> 25 | R10: =IF(B10="","empty","no") -> no
B11: 2 | C11: 40.5 | D11: =IFERROR(H11-F11,"") -> -4 | E11: =IF(B11="","","=") -> = | F11: =IF(B11="","",$J$3) -> 6 | G11: =IF(B11="","","-") -> - | H11: =B11 -> 2 | I11: =IF(B11="","","x =") -> x = | J11: =IFERROR(N11-L11,"") -> -47.67272727 | K11: =IF(C11="","","=") -> = | L11: =IF(C11="","",$J$6) -> 88.17272727 | M11: =IF(C11="","","-") -> - | N11: =C11 -> 40.5 | O11: =IF(C11="","","y =") -> y = | P11: =IFERROR(D11*J11,"") -> 190.6909091 | Q11: =IFERROR(D11*D11,"") -> 16 | R11: =IF(B11="","empty","no") -> no
B12: 3 | C12: 51.7 | D12: -3 | E12: = | F12: 6 | G12: - | H12: 3 | I12: x = | J12: -36.47272727 | K12: = | L12: 88.17272727 | M12: - | N12: 51.7 | O12: y = | P12: 109.4181818 | Q12: 9 | R12: no
B13: 4 | C13: 63.9 | D13: -2 | E13: = | F13: 6 | G13: - | H13: 4 | I13: x = | J13: -24.27272727 | K13: = | L13: 88.17272727 | M13: - | N13: 63.9 | O13: y = | P13: 48.54545455 | Q13: 4 | R13: no
B14: 5 | C14: 100.8 | D14: -1 | E14: = | F14: 6 | G14: - | H14: 5 | I14: x = | J14: 12.62727273 | K14: = | L14: 88.17272727 | M14: - | N14: 100.8 | O14: y = | P14: -12.62727273 | Q14: 1 | R14: no
B15: 6 | C15: 107.6 | D15: 0 | E15: = | F15: 6 | G15: - | H15: 6 | I15: x = | J15: 19.42727273 | K15: = | L15: 88.17272727 | M15: - | N15: 107.6 | O15: y = | P15: 0 | Q15: 0 | R15: no
B16: 7 | C16: 90.3 | D16: 1 | E16: = | F16: 6 | G16: - | H16: 7 | I16: x = | J16: 2.127272727 | K16: = | L16: 88.17272727 | M16: - | N16: 90.3 | O16: y = | P16: 2.127272727 | Q16: 1 | R16: no
B17: 8 | C17: 87.1 | D17: 2 | E17: = | F17: 6 | G17: - | H17: 8 | I17: x = | J17: -1.072727273 | K17: = | L17: 88.17272727 | M17: - | N17: 87.1 | O17: y = | P17: -2.145454545 | Q17: 4 | R17: no
B18: 9 | C18: 68.7 | D18: 3 | E18: = | F18: 6 | G18: - | H18: 9 | I18: x = | J18: -19.47272727 | K18: = | L18: 88.17272727 | M18: - | N18: 68.7 | O18: y = | P18: -58.41818182 | Q18: 9 | R18: no
B19: 10 | C19: 177 | D19: 4 | E19: = | F19: 6 | G19: - | H19: 10 | I19: x = | J19: 88.82727273 | K19: = | L19: 88.17272727 | M19: - | N19: 177 | O19: y = | P19: 355.3090909 | Q19: 16 | R19: no
B20: 11 | C20: 172 | D20: 5 | E20: = | F20: 6 | G20: - | H20: 11 | I20: x = | J20: 83.82727273 | K20: = | L20: 88.17272727 | M20: - | N20: 172 | O20: y = | P20: 419.1363636 | Q20: 25 | R20: no
R21: empty
R22: empty
R23: empty
R24: empty
R25: empty
R26: empty
R27: empty
R28: empty
R29: empty
R30: empty
R31: empty
R32: empty
R33: empty
R34: empty
P35: =IF(SUM(P10:P34)=0,"",SUM(P10:P34)) -> 1441.4 | Q35: =IF(SUM(Q10:Q34)=0,"",SUM(Q10:Q34)) -> 110
O37: =IF(SUM(P4:P27)=0,"",SUM(P4:P27)) -> 1441.4 | Q37: ∑(x.y) =
O38: =IF(SUM(Q9:Q32)=0,"",SUM(Q9:Q32)) -> 110 | Q38: ∑(x)² =
F39: إيجــاد المطلوب: | J39: y=ax+B
H40: =IFERROR(O37/O38,"") -> 13.10363636 | K40: = | L40: =O37 -> 1441.4 | O40: = | P40: ∑(x.y) | Q40: a =
L42: =O38 -> 110 | P42: ∑(x)²
I45: 1+(السنة الأخيرة - السنة الأولى) = x
L47: السنة الأخيرة= | O47: =IF(المعطيات!AB3=0,"",المعطيات!AB3) -> 2032
L48: السنة الأولى= | O48: =IF(المعطيات!C3=0,"",المعطيات!C3) -> 1991
I49: ="="&" "&(المعطيات!AB4) -> = 42 | K49: 1 | L49: + | M49: =O48 -> 1991 | O49: - | P49: =O47 -> 2032 | Q49: x=
F52: حســاب B: | L52: المعادلة الإفتراضية: y̅ = ax̅ + B
I53: B | J53: + | K53: ) | L53: =J3 -> 6 | M53: ( | N53: =H40 -> 13.10363636 | P53: = | Q53: =J6 -> 88.17272727
J55: B | K55: + | L55: =IFERROR(H40*J3,"") -> 78.62181818 | P55: = | Q55: =J6 -> 88.17272727
G58: =IFERROR((H40*J3)-J6,"") -> -9.550909091 | K58: = | L58: =Q55 -> 88.17272727 | M58: - | N58: =L55 -> 78.62181818 | P58: = | Q58: B
E61: بالتعويض في المعادلة الكلية | L61: y = ax + B
E63: ) | F63: =G58 -> -9.550909091 | I63: ( | J63: + | K63: ="("&" "&المعطيات!AB4&" "&")" -> ( 42 ) | N63: x | O63: =H40 -> 13.10363636 | Q63: y =
J65: =IFERROR(((O63*المعطيات!AB4)+G58),"") -> 540.8018182 | P65: y =
H67: بالتقريب | J67: =J65 -> 540.8018182 | P67: y =
